[Event "*** MasterClass Titled Tuesday Blitz"]
[Site "Chess.com"]
[Date "2017.10.03"]
[Round "4"]
[White "VladDobrov"]
[Black "Jospem"]
[Result "1-0"]
[WhiteElo "2631"]
[BlackElo "2547"]
[TimeControl "180+2"]
[EndTime "13:49:16 PDT"]
[Termination "VladDobrov won by resignation"]

1. d4 {[%clk 0:03:01.4]} 1... Nf6 {[%clk 0:03:00.2]} 2. c4 {[%clk 0:03:01.8]}
2... e6 {[%clk 0:02:59]} 3. Nf3 {[%clk 0:03:02.3]} 3... c5 {[%clk 0:02:57.3]} 4.
d5 {[%clk 0:03:03.4]} 4... exd5 {[%clk 0:02:57.3]} 5. cxd5 {[%clk 0:03:04.6]}
5... d6 {[%clk 0:02:58.7]} 6. Nc3 {[%clk 0:03:05.7]} 6... g6 {[%clk 0:02:59.2]}
7. Bf4 {[%clk 0:03:07.2]} 7... a6 {[%clk 0:02:55.5]} 8. e4 {[%clk 0:03:08.1]}
8... Bg7 {[%clk 0:02:51.3]} 9. Qa4+ {[%clk 0:03:08.9]} 9... Bd7 {[%clk
0:02:46.8]} 10. Qb3 {[%clk 0:03:09.9]} 10... Qc7 {[%clk 0:02:47.1]} 11. a4
{[%clk 0:03:09.4]} 11... O-O {[%clk 0:02:45.6]} 12. Be2 {[%clk 0:03:10.1]} 12...
Nh5 {[%clk 0:02:45.8]} 13. Be3 {[%clk 0:03:09.3]} 13... Bg4 {[%clk 0:02:46.9]}
14. h3 {[%clk 0:03:07.9]} 14... Bxf3 {[%clk 0:02:46.9]} 15. Bxf3 {[%clk
0:03:09.8]} 15... Nf6 {[%clk 0:02:47.5]} 16. e5 {[%clk 0:02:34]} 16... dxe5
{[%clk 0:02:43.2]} 17. d6 {[%clk 0:02:35.3]} 17... Qxd6 {[%clk 0:02:42.4]} 18.
Qxb7 {[%clk 0:02:36.1]} 18... Nbd7 {[%clk 0:02:42.9]} 19. Rd1 {[%clk 0:02:36.8]}
19... Qe6 {[%clk 0:02:42.3]} 20. Qc7 {[%clk 0:02:19.2]} 20... Rfc8 {[%clk
0:02:35.7]} 21. Qd6 {[%clk 0:02:03.6]} 21... Rab8 {[%clk 0:02:32.3]} 22. Qxe6
{[%clk 0:02:04.2]} 22... fxe6 {[%clk 0:02:32.9]} 23. O-O {[%clk 0:02:01.1]}
23... Rxb2 {[%clk 0:02:31.8]} 24. Rd6 {[%clk 0:01:57.5]} 24... Rb6 {[%clk
0:02:23.3]} 25. Rfd1 {[%clk 0:01:57.5]} 25... Bf8 {[%clk 0:02:23.3]} 26. Rxd7
{[%clk 0:01:57.7]} 26... Nxd7 {[%clk 0:02:24.1]} 27. Rxd7 {[%clk 0:01:59.6]}
27... Rd6 {[%clk 0:02:25.2]} 28. Ra7 {[%clk 0:01:58.4]} 28... c4 {[%clk
0:02:26.2]} 29. Ne4 {[%clk 0:01:59.2]} 29... Kh8 {[%clk 0:02:23.8]} 30. Nxd6
{[%clk 0:01:56.9]} 30... Bxd6 {[%clk 0:02:24.6]} 31. Rxa6 {[%clk 0:01:58]} 31...
Bb4 {[%clk 0:02:11.2]} 32. Rb6 {[%clk 0:01:46.1]} 32... Ba3 {[%clk 0:02:09.6]}
33. Bb7 {[%clk 0:01:39.2]} 33... Rc7 {[%clk 0:02:05]} 34. Be4 {[%clk 0:01:34.8]}
34... c3 {[%clk 0:02:05.4]} 35. Bc2 {[%clk 0:01:13.4]} 35... Bc5 {[%clk
0:01:58.8]} 36. Bxc5 {[%clk 0:01:02.8]} 36... Rxc5 {[%clk 0:01:59.7]} 37. Rb5
{[%clk 0:01:01]} 37... Rc6 {[%clk 0:01:56.9]} 38. Rxe5 {[%clk 0:00:58.2]} 38...
Kg7 {[%clk 0:01:57.6]} 39. f3 {[%clk 0:00:53.9]} 39... Kf6 {[%clk 0:01:58]} 40.
Rb5 {[%clk 0:00:52.7]} 40... h5 {[%clk 0:01:56.7]} 41. a5 {[%clk 0:00:51.6]}
41... h4 {[%clk 0:01:46.7]} 42. Kf1 {[%clk 0:00:51.5]} 42... Ra6 {[%clk
0:01:42.2]} 43. Rc5 {[%clk 0:00:51.8]} 43... Ra7 {[%clk 0:01:43.1]} 44. Ke2
{[%clk 0:00:52]} 44... Rd7 {[%clk 0:01:44]} 45. Rxc3 {[%clk 0:00:52.6]} 45...
Rd5 {[%clk 0:01:44.7]} 46. Ra3 {[%clk 0:00:53.4]} 1-0

[Event "*** MasterClass Titled Tuesday Blitz"]
[Site "Chess.com"]
[Date "2017.10.03"]
[Round "4"]
[White "Quiet_Desperation"]
[Black "XeresLt"]
[Result "0-1"]
[WhiteElo "2305"]
[BlackElo "2270"]
[TimeControl "180+2"]
[EndTime "13:49:19 PDT"]
[Termination "XeresLt won by resignation"]

1. e4 {[%clk 0:03:01.9]} 1... c5 {[%clk 0:03:00.4]} 2. Nf3 {[%clk 0:03:02.1]}
2... e6 {[%clk 0:03:01.8]} 3. d4 {[%clk 0:02:59.4]} 3... cxd4 {[%clk 0:03:03.7]}
4. Nxd4 {[%clk 0:03:00.2]} 4... Bc5 {[%clk 0:03:04.7]} 5. Nb3 {[%clk 0:03:00.7]}
5... Bb6 {[%clk 0:03:05.3]} 6. Nc3 {[%clk 0:03:01.5]} 6... Ne7 {[%clk
0:03:05.8]} 7. Qe2 {[%clk 0:03:02.3]} 7... O-O {[%clk 0:03:06.3]} 8. Be3 {[%clk
0:03:03.2]} 8... f5 {[%clk 0:03:06.7]} 9. O-O-O {[%clk 0:03:00]} 9... fxe4
{[%clk 0:03:07.6]} 10. Nxe4 {[%clk 0:02:59.1]} 10... d5 {[%clk 0:03:08.7]} 11.
Ng3 {[%clk 0:02:50.4]} 11... Nbc6 {[%clk 0:03:02.9]} 12. Bxb6 {[%clk 0:02:48.4]}
12... Qxb6 {[%clk 0:03:02.5]} 13. f3 {[%clk 0:02:45.4]} 13... a5 {[%clk
0:03:01.4]} 14. Qb5 {[%clk 0:02:38]} 14... Qe3+ {[%clk 0:03:00.8]} 15. Kb1
{[%clk 0:02:36.4]} 15... a4 {[%clk 0:03:00.7]} 16. Nc1 {[%clk 0:02:30.6]} 16...
a3 {[%clk 0:02:58.2]} 17. b3 {[%clk 0:02:22.5]} 17... Qc3 {[%clk 0:02:54.5]} 18.
Nd3 {[%clk 0:02:23]} 18... Ra5 {[%clk 0:02:32.8]} 19. Qb6 {[%clk 0:02:06.8]}
19... Nd4 {[%clk 0:02:02.7]} 20. Rc1 {[%clk 0:01:42.7]} 20... Nec6 {[%clk
0:02:01.7]} 21. Ne2 {[%clk 0:01:28.9]} 21... Nxe2 {[%clk 0:01:58.3]} 22. Bxe2
{[%clk 0:01:28.6]} 22... e5 {[%clk 0:01:54]} 23. Qf2 {[%clk 0:01:21.1]} 23... e4
{[%clk 0:01:53.5]} 24. Qe1 {[%clk 0:01:21.4]} 24... Qf6 {[%clk 0:01:51.1]} 25.
fxe4 {[%clk 0:01:19.7]} 25... dxe4 {[%clk 0:01:49.9]} 26. Rf1 {[%clk 0:01:20]}
26... Bf5 {[%clk 0:01:44.8]} 27. Qd2 {[%clk 0:00:43.4]} 27... exd3 {[%clk
0:01:41.9]} 28. cxd3 {[%clk 0:00:44.8]} 28... Qe5 {[%clk 0:01:21.4]} 29. Rc3
{[%clk 0:00:39.3]} 29... Nd4 {[%clk 0:01:18.9]} 30. Bf3 {[%clk 0:00:34.7]} 30...
Rc5 {[%clk 0:01:18]} 31. Rfc1 {[%clk 0:00:34.8]} 31... Rfc8 {[%clk 0:01:15.6]}
32. Rxc5 {[%clk 0:00:29.8]} 32... Rxc5 {[%clk 0:01:16.4]} 33. Re1 {[%clk
0:00:29.4]} 33... Nxf3 {[%clk 0:01:14.4]} 34. gxf3 {[%clk 0:00:27.4]} 34...
Bxd3+ {[%clk 0:01:14.9]} 0-1

[Event "*** MasterClass Titled Tuesday Blitz"]
[Site "Chess.com"]
[Date "2017.10.03"]
[Round "4"]
[White "eldur16"]
[Black "MITerryble"]
[Result "0-1"]
[WhiteElo "2478"]
[BlackElo "2633"]
[TimeControl "180+2"]
[EndTime "13:49:20 PDT"]
[Termination "MITerryble won by resignation"]

1. c4 {[%clk 0:03:01.9]} 1... e5 {[%clk 0:03:00.5]} 2. g3 {[%clk 0:03:01.9]}
2... Nf6 {[%clk 0:03:01.1]} 3. Bg2 {[%clk 0:03:02.8]} 3... c6 {[%clk 0:03:01.8]}
4. d4 {[%clk 0:03:02.8]} 4... Bb4+ {[%clk 0:03:02.4]} 5. Bd2 {[%clk 0:03:02.9]}
5... Bxd2+ {[%clk 0:03:02.8]} 6. Qxd2 {[%clk 0:03:04]} 6... d6 {[%clk
0:03:04.2]} 7. Nc3 {[%clk 0:03:04]} 7... O-O {[%clk 0:03:04.8]} 8. Nf3 {[%clk
0:03:04.8]} 8... e4 {[%clk 0:03:03.6]} 9. Ng5 {[%clk 0:03:04.9]} 9... d5 {[%clk
0:03:04.8]} 10. cxd5 {[%clk 0:02:54]} 10... cxd5 {[%clk 0:03:06.7]} 11. h4
{[%clk 0:02:52]} 11... Nc6 {[%clk 0:03:05.8]} 12. e3 {[%clk 0:02:44.8]} 12... h6
{[%clk 0:02:45.2]} 13. Nh3 {[%clk 0:02:45.3]} 13... Bg4 {[%clk 0:02:46.3]} 14.
Nf4 {[%clk 0:02:44.5]} 14... g5 {[%clk 0:02:41.1]} 15. hxg5 {[%clk 0:02:42.7]}
15... hxg5 {[%clk 0:02:43]} 16. Nh3 {[%clk 0:02:36.5]} 16... Nh7 {[%clk
0:02:21.8]} 17. Ng1 {[%clk 0:02:32.1]} 17... Kg7 {[%clk 0:02:21.4]} 18. f3
{[%clk 0:02:28.1]} 18... exf3 {[%clk 0:02:22.2]} 19. Nxf3 {[%clk 0:02:28.9]}
19... Bxf3 {[%clk 0:02:05.4]} 20. Bxf3 {[%clk 0:02:28.9]} 20... Ne7 {[%clk
0:02:06]} 21. O-O-O {[%clk 0:02:19.8]} 21... Rh8 {[%clk 0:02:06.8]} 22. e4
{[%clk 0:02:17.2]} 22... Rc8 {[%clk 0:02:05.9]} 23. Kb1 {[%clk 0:02:17.4]} 23...
dxe4 {[%clk 0:01:59]} 24. Nxe4 {[%clk 0:02:17.9]} 24... Qd5 {[%clk 0:01:46.3]}
25. Nxg5 {[%clk 0:02:12.7]} 25... Qd6 {[%clk 0:01:31.7]} 26. Be4 {[%clk
0:01:52.3]} 26... Nf6 {[%clk 0:01:28.6]} 27. Bxb7 {[%clk 0:01:46.8]} 27... Rb8
{[%clk 0:01:28.9]} 28. Rxh8 {[%clk 0:01:41.6]} 28... Rxh8 {[%clk 0:01:30.8]} 29.
Qf4 {[%clk 0:01:35.8]} 29... Qb6 {[%clk 0:01:24.5]} 30. Rf1 {[%clk 0:01:26.4]}
30... Rh2 {[%clk 0:01:23.8]} 31. b3 {[%clk 0:01:10.3]} 31... Ng6 {[%clk
0:01:24.7]} 32. Qf3 {[%clk 0:00:10.7]} 32... Qxd4 {[%clk 0:01:25.6]} 0-1

[Event "*** MasterClass Titled Tuesday Blitz"]
[Site "Chess.com"]
[Date "2017.10.03"]
[Round "4"]
[White "motivated_bishop"]
[Black "JosephRyan"]
[Result "1-0"]
[WhiteElo "2161"]
[BlackElo "2214"]
[TimeControl "180+2"]
[EndTime "13:49:44 PDT"]
[Termination "motivated_bishop won by resignation"]

1. d4 {[%clk 0:03:01.9]} 1... d5 {[%clk 0:02:57.3]} 2. c4 {[%clk 0:03:02.8]}
2... dxc4 {[%clk 0:02:58.4]} 3. e3 {[%clk 0:03:03.6]} 3... e5 {[%clk 0:02:58.2]}
4. Bxc4 {[%clk 0:03:04.4]} 4... exd4 {[%clk 0:02:59.6]} 5. exd4 {[%clk
0:03:06.3]} 5... Bd6 {[%clk 0:03:00.3]} 6. Qe2+ {[%clk 0:03:07.3]} 6... Qe7
{[%clk 0:03:00.6]} 7. Qxe7+ {[%clk 0:03:06.5]} 7... Nxe7 {[%clk 0:03:01]} 8. Nf3
{[%clk 0:03:07.6]} 8... O-O {[%clk 0:02:59.5]} 9. O-O {[%clk 0:03:08.6]} 9...
Nd7 {[%clk 0:03:00.5]} 10. Nc3 {[%clk 0:03:09.4]} 10... Nb6 {[%clk 0:03:01.5]}
11. Bb3 {[%clk 0:03:10.1]} 11... c6 {[%clk 0:03:02.6]} 12. Ne4 {[%clk
0:03:10.9]} 12... Bc7 {[%clk 0:02:57.1]} 13. Re1 {[%clk 0:03:10.6]} 13... Ned5
{[%clk 0:02:55.2]} 14. Bd2 {[%clk 0:03:11.6]} 14... h6 {[%clk 0:02:49.4]} 15.
Nc5 {[%clk 0:03:12.4]} 15... Bd6 {[%clk 0:02:46.2]} 16. Ne5 {[%clk 0:03:08.5]}
16... Be6 {[%clk 0:02:41.5]} 17. Nxb7 {[%clk 0:03:04.9]} 17... Bxe5 {[%clk
0:02:42.9]} 18. dxe5 {[%clk 0:03:04.3]} 18... Nc7 {[%clk 0:02:31.7]} 19. Rec1
{[%clk 0:02:59.6]} 19... Bxb3 {[%clk 0:02:30.8]} 20. axb3 {[%clk 0:03:01.5]}
20... Rfb8 {[%clk 0:02:24.7]} 21. Na5 {[%clk 0:02:58.4]} 21... Nbd5 {[%clk
0:02:21]} 22. Rxc6 {[%clk 0:02:56.8]} 22... Rb6 {[%clk 0:02:10.5]} 23. Rac1
{[%clk 0:02:52]} 23... Rxc6 {[%clk 0:02:08.6]} 24. Rxc6 {[%clk 0:02:52.6]} 24...
Rb8 {[%clk 0:02:08.1]} 25. Kf1 {[%clk 0:02:52.1]} 25... Ne6 {[%clk 0:02:03]} 26.
Ra6 {[%clk 0:02:48.5]} 26... Nd4 {[%clk 0:01:52.5]} 27. Rxa7 {[%clk 0:02:48.9]}
27... Nxb3 {[%clk 0:01:53.2]} 28. Nxb3 {[%clk 0:02:48.7]} 28... Rxb3 {[%clk
0:01:54]} 29. Ra5 {[%clk 0:02:35.7]} 29... Nc7 {[%clk 0:01:46.6]} 30. Bc3 {[%clk
0:02:33.6]} 30... Nb5 {[%clk 0:01:46]} 31. Ra8+ {[%clk 0:02:34.2]} 31... Kh7
{[%clk 0:01:46.6]} 32. Rb8 {[%clk 0:02:35.4]} 32... g5 {[%clk 0:01:39.5]} 33.
Rb6 {[%clk 0:02:11.9]} 33... h5 {[%clk 0:01:30.2]} 34. g3 {[%clk 0:01:56.9]}
34... g4 {[%clk 0:01:29.4]} 35. Ke1 {[%clk 0:01:52.9]} 35... Kg8 {[%clk
0:01:04.7]} 36. Kd2 {[%clk 0:01:47.7]} 36... Kh7 {[%clk 0:01:03]} 37. Kd3 {[%clk
0:01:41.2]} 37... Nxc3 {[%clk 0:00:52.4]} 38. Rxb3 {[%clk 0:01:41.6]} 38... Nd5
{[%clk 0:00:40]} 39. Ke4 {[%clk 0:01:40.6]} 39... Nc7 {[%clk 0:00:38.7]} 40. Rb7
{[%clk 0:01:40.6]} 40... Na6 {[%clk 0:00:35.1]} 41. b4 {[%clk 0:01:36.8]} 41...
Kg8 {[%clk 0:00:32]} 42. Kf5 {[%clk 0:01:36.8]} 42... Kf8 {[%clk 0:00:28.9]} 43.
Kf6 {[%clk 0:01:37.2]} 43... Ke8 {[%clk 0:00:29.2]} 44. Kg5 {[%clk 0:01:36.3]}
44... Nxb4 {[%clk 0:00:26.3]} 45. Rxb4 {[%clk 0:01:36.7]} 1-0

[Event "*** MasterClass Titled Tuesday Blitz"]
[Site "Chess.com"]
[Date "2017.10.03"]
[Round "4"]
[White "Diwi89"]
[Black "Paralinch"]
[Result "0-1"]
[WhiteElo "2533"]
[BlackElo "2682"]
[TimeControl "180+2"]
[EndTime "13:49:46 PDT"]
[Termination "Paralinch won by resignation"]

1. d4 {[%clk 0:03:01.9]} 1... d5 {[%clk 0:03:00.7]} 2. Nf3 {[%clk 0:03:01.7]}
2... Nf6 {[%clk 0:03:01.7]} 3. g3 {[%clk 0:03:02.8]} 3... Bf5 {[%clk 0:03:01]}
4. Bg2 {[%clk 0:03:01.5]} 4... e6 {[%clk 0:03:02.3]} 5. O-O {[%clk 0:02:58.5]}
5... h6 {[%clk 0:03:02.6]} 6. c4 {[%clk 0:02:56.7]} 6... c6 {[%clk 0:03:03.7]}
7. Nc3 {[%clk 0:02:57.4]} 7... Nbd7 {[%clk 0:03:03.9]} 8. Nd2 {[%clk 0:02:56.7]}
8... Be7 {[%clk 0:03:04.3]} 9. e4 {[%clk 0:02:57.2]} 9... dxe4 {[%clk
0:03:05.7]} 10. Ndxe4 {[%clk 0:02:57.9]} 10... O-O {[%clk 0:03:03.5]} 11. Be3
{[%clk 0:02:56.2]} 11... Nxe4 {[%clk 0:02:58.9]} 12. Nxe4 {[%clk 0:02:58.1]}
12... Bxe4 {[%clk 0:03:00.2]} 13. Bxe4 {[%clk 0:02:57.5]} 13... Nf6 {[%clk
0:03:01.7]} 14. Bg2 {[%clk 0:02:57.7]} 14... Qc7 {[%clk 0:03:02]} 15. Qe2 {[%clk
0:02:50.1]} 15... Rfd8 {[%clk 0:03:02.6]} 16. Rfd1 {[%clk 0:02:51.4]} 16... Rd7
{[%clk 0:03:03.7]} 17. Rac1 {[%clk 0:02:49.5]} 17... Rad8 {[%clk 0:03:04]} 18.
h4 {[%clk 0:02:50.3]} 18... b6 {[%clk 0:02:55.1]} 19. Bf3 {[%clk 0:02:47.4]}
19... c5 {[%clk 0:02:53.4]} 20. dxc5 {[%clk 0:02:48.5]} 20... Bxc5 {[%clk
0:02:53.1]} 21. Bf4 {[%clk 0:02:47.3]} 21... Bd6 {[%clk 0:02:45.5]} 22. Bxd6
{[%clk 0:02:38.7]} 22... Rxd6 {[%clk 0:02:45.8]} 23. b3 {[%clk 0:02:39.8]} 23...
Qc5 {[%clk 0:02:39.9]} 24. Rxd6 {[%clk 0:02:39.7]} 24... Rxd6 {[%clk 0:02:40.6]}
25. Rd1 {[%clk 0:02:40.1]} 25... Nd7 {[%clk 0:02:30.7]} 26. Rxd6 {[%clk
0:02:27.3]} 26... Qxd6 {[%clk 0:02:32.6]} 27. Qd1 {[%clk 0:02:28.3]} 27... Qxd1+
{[%clk 0:02:27.3]} 28. Bxd1 {[%clk 0:02:30.2]} 28... a5 {[%clk 0:02:24.9]} 29.
Kf1 {[%clk 0:02:30.6]} 29... Kf8 {[%clk 0:02:26.2]} 30. Ke2 {[%clk 0:02:31.8]}
30... Ke7 {[%clk 0:02:27.7]} 31. Ke3 {[%clk 0:02:33]} 31... Kd6 {[%clk
0:02:28.9]} 32. Kd4 {[%clk 0:02:33.5]} 32... e5+ {[%clk 0:02:27.3]} 33. Kc3
{[%clk 0:02:34.6]} 33... f5 {[%clk 0:02:23.8]} 34. a3 {[%clk 0:02:35.2]} 34...
Nf6 {[%clk 0:02:22.8]} 35. Bf3 {[%clk 0:02:30.8]} 35... e4 {[%clk 0:02:22.9]}
36. Be2 {[%clk 0:02:32]} 36... Ke5 {[%clk 0:02:02]} 37. b4 {[%clk 0:02:32.3]}
37... g5 {[%clk 0:02:01.4]} 38. hxg5 {[%clk 0:02:33]} 38... hxg5 {[%clk
0:02:02.2]} 39. c5 {[%clk 0:02:29.8]} 39... axb4+ {[%clk 0:02:02.8]} 40. Kxb4
{[%clk 0:02:30.3]} 40... Nd5+ {[%clk 0:01:54.5]} 41. Kc4 {[%clk 0:02:20.1]}
41... bxc5 {[%clk 0:01:55]} 42. Kxc5 {[%clk 0:02:21.3]} 42... f4 {[%clk
0:01:56.1]} 43. gxf4+ {[%clk 0:02:21.8]} 43... gxf4 {[%clk 0:01:57.2]} 44. Bc4
{[%clk 0:02:17.1]} 44... Nc3 {[%clk 0:01:54.8]} 45. Bf1 {[%clk 0:02:11.2]} 45...
f3 {[%clk 0:01:51]} 46. Kc4 {[%clk 0:02:05.3]} 46... Nd1 {[%clk 0:01:51.9]} 47.
a4 {[%clk 0:02:06.2]} 47... Nxf2 {[%clk 0:01:52.9]} 48. a5 {[%clk 0:02:07.5]}
48... e3 {[%clk 0:01:54]} 49. Kc3 {[%clk 0:02:07.6]} 49... Kf4 {[%clk
0:01:30.8]} 50. a6 {[%clk 0:02:05.1]} 50... Ne4+ {[%clk 0:01:28.5]} 51. Kd3
{[%clk 0:01:42.1]} 51... Nc5+ {[%clk 0:01:29]} 52. Kc2 {[%clk 0:01:43.2]} 52...
Nxa6 {[%clk 0:01:26.3]} 53. Bxa6 {[%clk 0:01:44]} 53... Kg3 {[%clk 0:01:27.6]}
0-1

[Event "*** MasterClass Titled Tuesday Blitz"]
[Site "Chess.com"]
[Date "2017.10.03"]
[Round "4"]
[White "WanderingPuppet"]
[Black "MartinMatthiesen"]
[Result "1-0"]
[WhiteElo "2328"]
[BlackElo "2320"]
[TimeControl "180+2"]
[EndTime "13:49:58 PDT"]
[Termination "WanderingPuppet won by resignation"]

1. e4 {[%clk 0:03:01.9]} 1... e5 {[%clk 0:03:00.3]} 2. Nf3 {[%clk 0:03:02.7]}
2... Nc6 {[%clk 0:03:00.7]} 3. Bb5 {[%clk 0:03:04.2]} 3... a6 {[%clk 0:03:01.4]}
4. Ba4 {[%clk 0:03:04.9]} 4... Nf6 {[%clk 0:03:02.5]} 5. O-O {[%clk 0:03:06.5]}
5... Be7 {[%clk 0:03:02.9]} 6. Re1 {[%clk 0:03:06.8]} 6... b5 {[%clk 0:03:03.7]}
7. Bb3 {[%clk 0:03:08.4]} 7... O-O {[%clk 0:03:04.5]} 8. a4 {[%clk 0:03:10]}
8... b4 {[%clk 0:03:02.6]} 9. a5 {[%clk 0:03:11.3]} 9... d6 {[%clk 0:03:02]} 10.
d3 {[%clk 0:03:11.8]} 10... h6 {[%clk 0:02:58.6]} 11. Nbd2 {[%clk 0:03:12.3]}
11... Be6 {[%clk 0:02:58.5]} 12. Bc4 {[%clk 0:03:05.2]} 12... Bxc4 {[%clk
0:02:46.2]} 13. Nxc4 {[%clk 0:03:05.6]} 13... Qb8 {[%clk 0:02:41]} 14. b3 {[%clk
0:03:02.9]} 14... Qb5 {[%clk 0:02:36.2]} 15. Bb2 {[%clk 0:03:03.3]} 15... Rad8
{[%clk 0:02:34.7]} 16. d4 {[%clk 0:03:02.8]} 16... exd4 {[%clk 0:02:23.3]} 17.
Nxd4 {[%clk 0:03:02.5]} 17... Nxd4 {[%clk 0:02:23.4]} 18. Qxd4 {[%clk
0:02:56.5]} 18... Rfe8 {[%clk 0:01:58.8]} 19. Ne3 {[%clk 0:02:30.1]} 19... c5
{[%clk 0:01:23.6]} 20. Qd3 {[%clk 0:02:27.2]} 20... Qxd3 {[%clk 0:01:12.3]} 21.
cxd3 {[%clk 0:02:29.1]} 21... Nd7 {[%clk 0:01:07.8]} 22. Nd5 {[%clk 0:02:24.9]}
22... Bf8 {[%clk 0:00:58.2]} 23. Nc7 {[%clk 0:02:24]} 23... Re7 {[%clk
0:00:58.6]} 24. Nxa6 {[%clk 0:02:19.2]} 24... Nf6 {[%clk 0:00:54.8]} 25. e5
{[%clk 0:02:15.2]} 25... Nd5 {[%clk 0:00:44.1]} 26. exd6 {[%clk 0:02:11.3]}
26... Rxe1+ {[%clk 0:00:44.3]} 27. Rxe1 {[%clk 0:02:12.7]} 27... Bxd6 {[%clk
0:00:45.9]} 28. d4 {[%clk 0:02:04.1]} 28... cxd4 {[%clk 0:00:31.2]} 29. Bxd4
{[%clk 0:02:03.2]} 29... Nc3 {[%clk 0:00:19.3]} 30. Bb6 {[%clk 0:01:26.3]} 30...
Rc8 {[%clk 0:00:18.7]} 31. g3 {[%clk 0:01:21.6]} 31... h5 {[%clk 0:00:19.1]} 32.
Kg2 {[%clk 0:01:10.4]} 32... Na2 {[%clk 0:00:20.1]} 33. Rd1 {[%clk 0:01:06]}
33... Bf8 {[%clk 0:00:19.4]} 34. Nc7 {[%clk 0:00:58.1]} 34... Nc3 {[%clk
0:00:16.9]} 35. Ra1 {[%clk 0:00:58.1]} 35... Rb8 {[%clk 0:00:16]} 36. a6 {[%clk
0:00:55.4]} 1-0

[Event "*** MasterClass Titled Tuesday Blitz"]
[Site "Chess.com"]
[Date "2017.10.03"]
[Round "4"]
[White "livestrong04"]
[Black "Hanging_pointer"]
[Result "0-1"]
[WhiteElo "2348"]
[BlackElo "2322"]
[TimeControl "180+2"]
[EndTime "13:49:59 PDT"]
[Termination "Hanging_pointer won by resignation"]

1. e4 {[%clk 0:03:01.9]} 1... c5 {[%clk 0:03:01.2]} 2. c3 {[%clk 0:03:02.3]}
2... d5 {[%clk 0:03:01.8]} 3. exd5 {[%clk 0:03:03.3]} 3... Qxd5 {[%clk
0:03:03.7]} 4. d4 {[%clk 0:03:04.1]} 4... g6 {[%clk 0:03:03.5]} 5. Nf3 {[%clk
0:03:03.6]} 5... Bg7 {[%clk 0:03:03.5]} 6. Na3 {[%clk 0:03:04.7]} 6... cxd4
{[%clk 0:03:01.6]} 7. Bc4 {[%clk 0:03:05.2]} 7... Qe4+ {[%clk 0:03:02.8]} 8. Be3
{[%clk 0:03:05.9]} 8... Nh6 {[%clk 0:02:55.6]} 9. Nb5 {[%clk 0:02:58.9]} 9...
O-O {[%clk 0:02:48.6]} 10. Nbxd4 {[%clk 0:02:58.5]} 10... Ng4 {[%clk 0:02:40.3]}
11. O-O {[%clk 0:02:35.2]} 11... Nxe3 {[%clk 0:02:41.3]} 12. fxe3 {[%clk
0:02:37.1]} 12... Qxe3+ {[%clk 0:02:40.5]} 13. Kh1 {[%clk 0:02:38.3]} 13... e5
{[%clk 0:02:05.6]} 14. Nb5 {[%clk 0:02:33.6]} 14... Qc5 {[%clk 0:02:06.4]} 15.
Qb3 {[%clk 0:02:25.5]} 15... a6 {[%clk 0:01:45.8]} 16. Bxf7+ {[%clk 0:02:23.3]}
16... Kh8 {[%clk 0:01:35.9]} 17. Na3 {[%clk 0:02:10.5]} 17... Bf5 {[%clk
0:01:09.4]} 18. Ng5 {[%clk 0:02:03]} 18... Nc6 {[%clk 0:00:56.5]} 19. Rxf5
{[%clk 0:01:40]} 19... gxf5 {[%clk 0:00:58.4]} 20. Qe6 {[%clk 0:01:39.1]} 20...
e4 {[%clk 0:00:33.4]} 21. Nxh7 {[%clk 0:01:31]} 21... Rxf7 {[%clk 0:00:33.6]}
22. Qxf7 {[%clk 0:01:27.9]} 22... Kxh7 {[%clk 0:00:34.5]} 23. Rf1 {[%clk
0:01:28.8]} 23... Rf8 {[%clk 0:00:33.4]} 24. Qxb7 {[%clk 0:01:24.2]} 24... Ne5
{[%clk 0:00:27.3]} 25. Qxa6 {[%clk 0:01:16.1]} 25... Ng4 {[%clk 0:00:28]} 26.
Qe2 {[%clk 0:01:15.5]} 26... Qe5 {[%clk 0:00:16.9]} 27. g3 {[%clk 0:01:12.3]}
27... e3 {[%clk 0:00:16.5]} 28. h3 {[%clk 0:01:01.5]} 28... Qe4+ {[%clk
0:00:16.7]} 29. Rf3 {[%clk 0:00:54.7]} 29... Ne5 {[%clk 0:00:16.1]} 30. Kg2
{[%clk 0:00:42.4]} 30... Nxf3 {[%clk 0:00:16.8]} 31. Qxf3 {[%clk 0:00:43.4]}
31... e2 {[%clk 0:00:18.3]} 32. Nc2 {[%clk 0:00:42.3]} 32... Qxc2 {[%clk
0:00:15.6]} 33. Qh5+ {[%clk 0:00:43]} 33... Kg8 {[%clk 0:00:17]} 34. Qxe2 {[%clk
0:00:44.7]} 34... Qxe2+ {[%clk 0:00:17.8]} 0-1

[Event "*** MasterClass Titled Tuesday Blitz"]
[Site "Chess.com"]
[Date "2017.10.03"]
[Round "4"]
[White "Mbneu"]
[Black "rickkrewson"]
[Result "1-0"]
[WhiteElo "2198"]
[BlackElo "1776"]
[TimeControl "180+2"]
[EndTime "13:50:00 PDT"]
[Termination "Mbneu won on time"]

1. d4 {[%clk 0:03:01.9]} 1... e6 {[%clk 0:02:58.1]} 2. c4 {[%clk 0:03:02.4]}
2... Nf6 {[%clk 0:02:56.6]} 3. Nc3 {[%clk 0:03:02.6]} 3... d5 {[%clk 0:02:51.3]}
4. Nf3 {[%clk 0:03:02.1]} 4... Be7 {[%clk 0:02:50.8]} 5. g3 {[%clk 0:03:02.8]}
5... O-O {[%clk 0:02:48.3]} 6. Bg2 {[%clk 0:03:04.2]} 6... b6 {[%clk 0:02:48.8]}
7. cxd5 {[%clk 0:03:02.8]} 7... Nxd5 {[%clk 0:02:47]} 8. e4 {[%clk 0:03:00.5]}
8... Nxc3 {[%clk 0:02:40.4]} 9. bxc3 {[%clk 0:03:00.6]} 9... Bb7 {[%clk
0:02:41.6]} 10. Qc2 {[%clk 0:02:58.2]} 10... c5 {[%clk 0:02:33.6]} 11. O-O
{[%clk 0:02:58.1]} 11... Nc6 {[%clk 0:02:20.2]} 12. d5 {[%clk 0:02:45]} 12...
exd5 {[%clk 0:02:10.8]} 13. exd5 {[%clk 0:02:43.9]} 13... Qxd5 {[%clk 0:01:09]}
14. Bb2 {[%clk 0:01:35.7]} 14... Rad8 {[%clk 0:00:57.8]} 15. Rfe1 {[%clk
0:01:07.8]} 15... Bf6 {[%clk 0:00:46.2]} 16. Rad1 {[%clk 0:00:25.5]} 16... Qh5
{[%clk 0:00:46]} 17. Rxd8 {[%clk 0:00:19.7]} 17... Rxd8 {[%clk 0:00:45.9]} 18.
Qe2 {[%clk 0:00:15.4]} 18... h6 {[%clk 0:00:36.2]} 19. Qe4 {[%clk 0:00:14.8]}
19... Na5 {[%clk 0:00:28.8]} 20. Qf4 {[%clk 0:00:15.1]} 20... Qg6 {[%clk
0:00:08.9]} 21. Ne5 {[%clk 0:00:14.2]} 21... Bxe5 {[%clk 0:00:08.5]} 22. Rxe5
{[%clk 0:00:13.4]} 22... Qb1+ {[%clk 0:00:08.2]} 23. Bf1 {[%clk 0:00:13.5]}
23... Qxb2 {[%clk 0:00:09.1]} 24. Re7 {[%clk 0:00:14.1]} 24... Rf8 {[%clk
0:00:06.5]} 25. Qc7 {[%clk 0:00:09.6]} 1-0